[Event "Early-Titled-Tuesday-Blitz-January-30-2024"]
[Site "Chess.com"]
[Date "2024.01.30"]
[Round "1"]
[White "Matibar"]
[Black "Zheenbekov86"]
[Result "1-0"]
[WhiteElo "2802"]
[BlackElo "2449"]
[TimeControl "180+1"]
[EndTime "8:08:22 PST"]
[Termination "Matibar won on time"]

1. e4 {[%clk 0:03:00.9]} 1... c6 {[%clk 0:02:59]} 2. Ne2 {[%clk 0:02:59.6]} 2...
d5 {[%clk 0:02:58.3]} 3. e5 {[%clk 0:02:59.9]} 3... g6 {[%clk 0:02:56.8]} 4. d4
{[%clk 0:02:58.6]} 4... Bg7 {[%clk 0:02:56.3]} 5. c3 {[%clk 0:02:54.3]} 5... c5
{[%clk 0:02:36.3]} 6. Be3 {[%clk 0:02:33.7]} 6... Nc6 {[%clk 0:02:34.9]} 7. Nd2
{[%clk 0:02:31.5]} 7... cxd4 {[%clk 0:02:23.1]} 8. cxd4 {[%clk 0:02:30.7]} 8...
f6 {[%clk 0:02:18.6]} 9. exf6 {[%clk 0:02:16.9]} 9... Nxf6 {[%clk 0:02:17.9]}
10. h3 {[%clk 0:02:12.6]} 10... O-O {[%clk 0:02:17.4]} 11. Nf3 {[%clk
0:02:05.1]} 11... Ne4 {[%clk 0:02:14.2]} 12. Nc3 {[%clk 0:02:04.8]} 12... Nxc3
{[%clk 0:01:47.9]} 13. bxc3 {[%clk 0:02:04.3]} 13... Qa5 {[%clk 0:01:47.5]} 14.
Qb3 {[%clk 0:01:41.3]} 14... Kh8 {[%clk 0:01:37.9]} 15. Be2 {[%clk 0:01:39.5]}
15... e5 {[%clk 0:01:30.6]} 16. dxe5 {[%clk 0:01:37.9]} 16... Nxe5 {[%clk
0:01:30.1]} 17. Nxe5 {[%clk 0:01:34.4]} 17... Bxe5 {[%clk 0:01:29.2]} 18. Rc1
{[%clk 0:01:18.9]} 18... d4 {[%clk 0:01:26.4]} 19. Bd2 {[%clk 0:01:18.6]} 19...
dxc3 {[%clk 0:01:15.7]} 20. Bxc3 {[%clk 0:01:18.6]} 20... Bxc3+ {[%clk
0:01:15.4]} 21. Qxc3+ {[%clk 0:01:17.5]} 21... Qxc3+ {[%clk 0:01:14.9]} 22. Rxc3
{[%clk 0:01:18.4]} 22... Be6 {[%clk 0:01:15.2]} 23. a3 {[%clk 0:01:13.7]} 23...
Rac8 {[%clk 0:01:14]} 24. Rxc8 {[%clk 0:01:12.5]} 24... Rxc8 {[%clk 0:01:13.7]}
25. Kd2 {[%clk 0:01:13.4]} 25... Kg7 {[%clk 0:01:07.6]} 26. Rb1 {[%clk
0:01:10.3]} 26... b6 {[%clk 0:01:06.7]} 27. Rb4 {[%clk 0:01:10.9]} 27... Kf6
{[%clk 0:01:05.9]} 28. f4 {[%clk 0:01:06.4]} 28... Rc5 {[%clk 0:01:05.1]} 29. g4
{[%clk 0:01:02]} 29... Ra5 {[%clk 0:00:59.4]} 30. a4 {[%clk 0:01:00.5]} 30...
Ke7 {[%clk 0:00:44]} 31. Bb5 {[%clk 0:00:56]} 31... Kd6 {[%clk 0:00:42.4]} 32.
Kc3 {[%clk 0:00:53.2]} 32... a6 {[%clk 0:00:40.6]} 33. Bd3 {[%clk 0:00:51.8]}
33... Kc5 {[%clk 0:00:38.4]} 34. Re4 {[%clk 0:00:48.1]} 34... Bd5 {[%clk
0:00:33.9]} 35. Re7 {[%clk 0:00:29.3]} 35... Rxa4 {[%clk 0:00:33.7]} 36. Rxh7
{[%clk 0:00:29.2]} 36... Rxf4 {[%clk 0:00:32.3]} 37. Bxg6 {[%clk 0:00:27.9]}
37... b5 {[%clk 0:00:32.2]} 38. Rc7+ {[%clk 0:00:21.8]} 38... Kb6 {[%clk
0:00:31.7]} 39. Rd7 {[%clk 0:00:22.1]} 39... b4+ {[%clk 0:00:31.6]} 40. Kd2
{[%clk 0:00:21.1]} 40... Kc5 {[%clk 0:00:27.2]} 41. Bf5 {[%clk 0:00:19.7]} 41...
b3 {[%clk 0:00:25.6]} 42. h4 {[%clk 0:00:19.5]} 42... Rf2+ {[%clk 0:00:22.8]}
43. Ke3 {[%clk 0:00:18]} 43... Rf3+ {[%clk 0:00:20]} 44. Kd2 {[%clk 0:00:17.4]}
44... b2 {[%clk 0:00:20.2]} 45. Kc2 {[%clk 0:00:15.5]} 45... Rf2+ {[%clk
0:00:16.4]} 46. Kb1 {[%clk 0:00:15.8]} 46... a5 {[%clk 0:00:08.4]} 47. Rc7+
{[%clk 0:00:09.2]} 47... Kd4 {[%clk 0:00:08.3]} 48. Rc2 {[%clk 0:00:08.7]} 48...
Rf1+ {[%clk 0:00:05.7]} 49. Kxb2 {[%clk 0:00:08.9]} 49... a4 {[%clk 0:00:04.8]}
50. Rd2+ {[%clk 0:00:09]} 50... Kc5 {[%clk 0:00:03.8]} 51. h5 {[%clk 0:00:09.2]}
51... Bc4 {[%clk 0:00:02.3]} 52. h6 {[%clk 0:00:08.6]} 52... Kb4 {[%clk
0:00:01.3]} 53. h7 {[%clk 0:00:07.1]} 53... a3+ {[%clk 0:00:01.4]} 54. Kc2
{[%clk 0:00:07.6]} 1-0

[Event "Early-Titled-Tuesday-Blitz-January-30-2024"]
[Site "Chess.com"]
[Date "2024.01.30"]
[Round "1"]
[White "Grandelicious"]
[Black "Sjakkerntobi"]
[Result "1/2-1/2"]
[WhiteElo "2914"]
[BlackElo "2514"]
[TimeControl "180+1"]
[EndTime "8:08:23 PST"]
[Termination "Game drawn by repetition"]

1. Nf3 {[%clk 0:03:00.9]} 1... d5 {[%clk 0:02:59.7]} 2. e3 {[%clk 0:03:01.2]}
2... Nf6 {[%clk 0:02:58.6]} 3. c4 {[%clk 0:03:01.8]} 3... e6 {[%clk 0:02:57.3]}
4. b3 {[%clk 0:03:02.5]} 4... c5 {[%clk 0:02:57.8]} 5. Bb2 {[%clk 0:03:02.9]}
5... Nc6 {[%clk 0:02:58.1]} 6. cxd5 {[%clk 0:03:03.6]} 6... exd5 {[%clk
0:02:58.8]} 7. Be2 {[%clk 0:03:04.4]} 7... Be7 {[%clk 0:02:59]} 8. O-O {[%clk
0:03:04.3]} 8... O-O {[%clk 0:02:59.3]} 9. d4 {[%clk 0:03:05]} 9... Ne4 {[%clk
0:02:59.9]} 10. dxc5 {[%clk 0:03:01.5]} 10... Bxc5 {[%clk 0:02:48.2]} 11. Nc3
{[%clk 0:02:59.1]} 11... Be6 {[%clk 0:02:47.7]} 12. Rc1 {[%clk 0:02:47.9]} 12...
Bb6 {[%clk 0:02:47.5]} 13. Na4 {[%clk 0:02:44.7]} 13... Bc7 {[%clk 0:02:43.3]}
14. Nd4 {[%clk 0:02:36.6]} 14... Nxd4 {[%clk 0:02:12.2]} 15. Qxd4 {[%clk
0:02:37.5]} 15... Nf6 {[%clk 0:02:06.2]} 16. Qh4 {[%clk 0:02:21.7]} 16... Ne4
{[%clk 0:01:50.9]} 17. Qxd8 {[%clk 0:02:18.7]} 17... Bxd8 {[%clk 0:01:51.8]} 18.
Ba3 {[%clk 0:02:17.6]} 18... Re8 {[%clk 0:01:50.3]} 19. f3 {[%clk 0:01:55]}
19... Bg5 {[%clk 0:01:30.9]} 20. f4 {[%clk 0:01:41.3]} 20... Bf6 {[%clk
0:01:23.2]} 21. Bb5 {[%clk 0:01:31.7]} 21... Rec8 {[%clk 0:01:20.6]} 22. f5
{[%clk 0:01:23.5]} 22... Rxc1 {[%clk 0:01:20.4]} 23. Bxc1 {[%clk 0:01:23.1]}
23... Bc8 {[%clk 0:01:18.1]} 24. Bd3 {[%clk 0:01:15.1]} 24... Bd7 {[%clk
0:01:12.4]} 25. Bxe4 {[%clk 0:00:58.7]} 25... dxe4 {[%clk 0:01:13.3]} 26. Nc5
{[%clk 0:00:56.3]} 26... Bc6 {[%clk 0:01:13.3]} 27. Rd1 {[%clk 0:00:56.4]} 27...
Rd8 {[%clk 0:01:09.8]} 28. Rxd8+ {[%clk 0:00:54.4]} 28... Bxd8 {[%clk
0:01:10.7]} 29. b4 {[%clk 0:00:50.8]} 29... Be7 {[%clk 0:01:03.7]} 30. Kf2
{[%clk 0:00:47]} 30... a5 {[%clk 0:01:01.6]} 31. Bd2 {[%clk 0:00:41.8]} 31... b6
{[%clk 0:00:50.5]} 32. Na6 {[%clk 0:00:34.5]} 32... Bb7 {[%clk 0:00:46.9]} 33.
Nb8 {[%clk 0:00:29.6]} 33... Bxb4 {[%clk 0:00:32.7]} 34. Bxb4 {[%clk 0:00:29.4]}
34... axb4 {[%clk 0:00:33.6]} 35. Nd7 {[%clk 0:00:29.5]} 35... Bd5 {[%clk
0:00:33.6]} 36. Nxb6 {[%clk 0:00:27.1]} 36... Bxa2 {[%clk 0:00:33.7]} 37. Kg3
{[%clk 0:00:25]} 37... Bb1 {[%clk 0:00:23.5]} 38. Kf4 {[%clk 0:00:25.3]} 38...
Bd3 {[%clk 0:00:21.6]} 39. Ke5 {[%clk 0:00:23.7]} 39... Kf8 {[%clk 0:00:20.4]}
40. Kd4 {[%clk 0:00:20.5]} 40... b3 {[%clk 0:00:17.8]} 41. Kc3 {[%clk
0:00:21.2]} 41... Bc2 {[%clk 0:00:17.8]} 42. Nd5 {[%clk 0:00:15]} 42... Ke8
{[%clk 0:00:17.1]} 43. f6 {[%clk 0:00:13.9]} 43... g6 {[%clk 0:00:16.6]} 44. Nb4
{[%clk 0:00:13.7]} 44... Kd7 {[%clk 0:00:16.2]} 45. g4 {[%clk 0:00:08.6]} 45...
g5 {[%clk 0:00:15.4]} 46. Nxc2 {[%clk 0:00:02.8]} 46... bxc2 {[%clk 0:00:16.3]}
47. Kxc2 {[%clk 0:00:03.5]} 47... Ke6 {[%clk 0:00:17]} 48. Kc3 {[%clk
0:00:04.4]} 48... Kxf6 {[%clk 0:00:03.7]} 49. Kd4 {[%clk 0:00:04.9]} 49... Ke6
{[%clk 0:00:03.7]} 50. Kxe4 {[%clk 0:00:05.6]} 50... Kf6 {[%clk 0:00:04.1]} 51.
Kd5 {[%clk 0:00:05.8]} 51... Kg6 {[%clk 0:00:04.6]} 52. Ke5 {[%clk 0:00:06.1]}
52... f6+ {[%clk 0:00:04.9]} 53. Ke6 {[%clk 0:00:06.3]} 53... Kg7 {[%clk
0:00:05.7]} 54. e4 {[%clk 0:00:04.9]} 54... Kg6 {[%clk 0:00:05.8]} 55. Ke7
{[%clk 0:00:02.8]} 55... Kg7 {[%clk 0:00:05.9]} 56. h3 {[%clk 0:00:03.3]} 56...
h6 {[%clk 0:00:05.1]} 57. Ke6 {[%clk 0:00:03.8]} 57... Kg6 {[%clk 0:00:05.8]}
58. e5 {[%clk 0:00:04.4]} 58... fxe5 {[%clk 0:00:06.1]} 59. Kxe5 {[%clk
0:00:05.3]} 59... Kg7 {[%clk 0:00:06.4]} 60. Kd6 {[%clk 0:00:05.9]} 60... Kf6
{[%clk 0:00:06.8]} 61. Kd5 {[%clk 0:00:06.7]} 61... Kf7 {[%clk 0:00:06.7]} 62.
Ke5 {[%clk 0:00:07.6]} 62... Ke7 {[%clk 0:00:07.3]} 63. Kf5 {[%clk 0:00:08.3]}
63... Kf7 {[%clk 0:00:08.1]} 64. Ke4 {[%clk 0:00:09.1]} 64... Ke6 {[%clk
0:00:08.6]} 65. Kd4 {[%clk 0:00:09.9]} 65... Kd6 {[%clk 0:00:09.2]} 66. Ke4
{[%clk 0:00:10.6]} 66... Ke6 {[%clk 0:00:09.9]} 67. Kd4 {[%clk 0:00:11.4]} 67...
Kd6 {[%clk 0:00:10.5]} 68. Ke4 {[%clk 0:00:12.3]} 68... Ke6 {[%clk 0:00:11.2]}
1/2-1/2

[Event "Early-Titled-Tuesday-Blitz-January-30-2024"]
[Site "Chess.com"]
[Date "2024.01.30"]
[Round "1"]
[White "chito89"]
[Black "ErikRonka"]
[Result "1-0"]
[WhiteElo "2889"]
[BlackElo "2494"]
[TimeControl "180+1"]
[EndTime "8:08:24 PST"]
[Termination "chito89 won on time"]

1. e4 {[%clk 0:02:56.4]} 1... c5 {[%clk 0:02:58.6]} 2. Nf3 {[%clk 0:02:56.5]}
2... e6 {[%clk 0:02:59.2]} 3. g3 {[%clk 0:02:56.1]} 3... d5 {[%clk 0:02:58.7]}
4. exd5 {[%clk 0:02:56]} 4... exd5 {[%clk 0:02:59.6]} 5. Bg2 {[%clk 0:02:56.1]}
5... Qe7+ {[%clk 0:02:59.2]} 6. Kf1 {[%clk 0:02:55.9]} 6... Nc6 {[%clk 0:02:53]}
7. d4 {[%clk 0:02:55.5]} 7... Nf6 {[%clk 0:02:43.9]} 8. Nc3 {[%clk 0:02:50.8]}
8... h6 {[%clk 0:02:43.8]} 9. dxc5 {[%clk 0:02:23.1]} 9... Qxc5 {[%clk
0:02:41.2]} 10. Be3 {[%clk 0:02:22.8]} 10... Qc4+ {[%clk 0:02:27.5]} 11. Qe2
{[%clk 0:02:20.3]} 11... Bb4 {[%clk 0:02:14.2]} 12. Qxc4 {[%clk 0:01:46.1]}
12... dxc4 {[%clk 0:02:14.1]} 13. Nd4 {[%clk 0:01:47]} 13... Ne7 {[%clk
0:01:20.5]} 14. Ndb5 {[%clk 0:01:39.4]} 14... O-O {[%clk 0:01:12.7]} 15. Nc7
{[%clk 0:01:32.1]} 15... Rb8 {[%clk 0:01:12]} 16. Bxa7 {[%clk 0:01:31.8]} 16...
Bf5 {[%clk 0:01:07.9]} 17. Bxb8 {[%clk 0:01:30.5]} 17... Rxb8 {[%clk 0:01:08.8]}
18. Rc1 {[%clk 0:01:20.9]} 18... g5 {[%clk 0:00:57]} 19. h4 {[%clk 0:01:17.5]}
19... Kg7 {[%clk 0:00:56.6]} 20. hxg5 {[%clk 0:01:16]} 20... hxg5 {[%clk
0:00:57.5]} 21. N7b5 {[%clk 0:01:12.7]} 21... Nc6 {[%clk 0:00:52.7]} 22. Bxc6
{[%clk 0:00:56.8]} 22... bxc6 {[%clk 0:00:52.7]} 23. Nd4 {[%clk 0:00:57.7]}
23... Bd7 {[%clk 0:00:52.6]} 24. Nf3 {[%clk 0:00:49.2]} 24... Bxc3 {[%clk
0:00:32.8]} 25. bxc3 {[%clk 0:00:48.8]} 25... Ne4 {[%clk 0:00:33.7]} 26. Kg2
{[%clk 0:00:39.2]} 26... Be6 {[%clk 0:00:33.6]} 27. Nd4 {[%clk 0:00:33.7]} 27...
Bd5 {[%clk 0:00:33.6]} 28. f3 {[%clk 0:00:34.4]} 28... Nxc3 {[%clk 0:00:32]} 29.
Nf5+ {[%clk 0:00:35]} 29... Kf6 {[%clk 0:00:25.9]} 30. g4 {[%clk 0:00:35.2]}
30... Rb2 {[%clk 0:00:24.2]} 31. Rhe1 {[%clk 0:00:13.9]} 31... Nxa2 {[%clk
0:00:19.9]} 32. Ra1 {[%clk 0:00:14.1]} 32... Rxc2+ {[%clk 0:00:19.5]} 33. Kg3
{[%clk 0:00:14.8]} 33... Nb4 {[%clk 0:00:18.1]} 34. Ra8 {[%clk 0:00:13.8]} 34...
Be6 {[%clk 0:00:13]} 35. Nd4 {[%clk 0:00:09.7]} 35... Rd2 {[%clk 0:00:13]} 36.
Nxe6 {[%clk 0:00:09.9]} 36... fxe6 {[%clk 0:00:13.9]} 37. Rf8+ {[%clk
0:00:10.4]} 37... Ke7 {[%clk 0:00:14]} 38. Rg8 {[%clk 0:00:10.9]} 38... Rd5
{[%clk 0:00:13.3]} 39. Rg7+ {[%clk 0:00:09.1]} 39... Kd6 {[%clk 0:00:13.2]} 40.
Rg6 {[%clk 0:00:09.2]} 40... Nd3 {[%clk 0:00:06.2]} 41. Rexe6+ {[%clk
0:00:08.7]} 41... Kc5 {[%clk 0:00:06.9]} 42. Rxc6+ {[%clk 0:00:09.2]} 42... Kd4
{[%clk 0:00:07]} 43. Rgd6 {[%clk 0:00:07.2]} 43... c3 {[%clk 0:00:07.3]} 44.
Rxd5+ {[%clk 0:00:07.6]} 44... Kxd5 {[%clk 0:00:07.5]} 45. Rxc3 {[%clk
0:00:08.5]} 45... Kd4 {[%clk 0:00:07.3]} 46. Rxd3+ {[%clk 0:00:08.5]} 46... Kxd3
{[%clk 0:00:07.6]} 47. f4 {[%clk 0:00:09.4]} 47... Ke4 {[%clk 0:00:02.2]} 48.
fxg5 {[%clk 0:00:10]} 48... Ke5 {[%clk 0:00:02]} 49. Kh4 {[%clk 0:00:09.7]}
49... Ke6 {[%clk 0:00:02.6]} 50. Kh5 {[%clk 0:00:09.9]} 50... Kf7 {[%clk
0:00:03.2]} 51. Kh6 {[%clk 0:00:10.1]} 51... Kg8 {[%clk 0:00:03.5]} 52. Kg6
{[%clk 0:00:10.3]} 52... Kh8 {[%clk 0:00:04.2]} 53. Kf7 {[%clk 0:00:10.6]} 53...
Kh7 {[%clk 0:00:04.8]} 54. g6+ {[%clk 0:00:11.1]} 54... Kh6 {[%clk 0:00:04.2]}
55. g7 {[%clk 0:00:12]} 1-0

[Event "Early-Titled-Tuesday-Blitz-January-30-2024"]
[Site "Chess.com"]
[Date "2024.01.30"]
[Round "1"]
[White "atalz0"]
[Black "Elsa167"]
[Result "1/2-1/2"]
[WhiteElo "2481"]
[BlackElo "2841"]
[TimeControl "180+1"]
[EndTime "8:08:24 PST"]
[Termination "Game drawn by stalemate"]

1. d4 {[%clk 0:03:00.9]} 1... Nf6 {[%clk 0:02:59.4]} 2. c4 {[%clk 0:03:01.1]}
2... g6 {[%clk 0:02:58.9]} 3. f3 {[%clk 0:03:01.4]} 3... Bg7 {[%clk 0:02:55.3]}
4. e4 {[%clk 0:03:01.5]} 4... d6 {[%clk 0:02:55.2]} 5. Nc3 {[%clk 0:03:01.3]}
5... O-O {[%clk 0:02:55.1]} 6. Be3 {[%clk 0:03:01.9]} 6... a6 {[%clk 0:02:53.3]}
7. Qd2 {[%clk 0:03:01.9]} 7... Nc6 {[%clk 0:02:52.8]} 8. O-O-O {[%clk
0:03:00.4]} 8... Bd7 {[%clk 0:02:46.9]} 9. h4 {[%clk 0:02:59.7]} 9... h5 {[%clk
0:02:39.3]} 10. g4 {[%clk 0:02:59.6]} 10... e5 {[%clk 0:02:26.8]} 11. Bg5 {[%clk
0:02:46.4]} 11... Nxd4 {[%clk 0:02:07]} 12. gxh5 {[%clk 0:02:42.4]} 12... Qe8
{[%clk 0:01:35.5]} 13. h6 {[%clk 0:02:29.8]} 13... Bh8 {[%clk 0:01:35.1]} 14.
h7+ {[%clk 0:01:51.1]} 14... Nxh7 {[%clk 0:01:27.1]} 15. Nd5 {[%clk 0:01:47]}
15... f6 {[%clk 0:01:02]} 16. Bh6 {[%clk 0:01:37.4]} 16... Ba4 {[%clk
0:00:57.4]} 17. Re1 {[%clk 0:01:15]} 17... Rf7 {[%clk 0:00:47.6]} 18. h5 {[%clk
0:01:06.3]} 18... g5 {[%clk 0:00:45.5]} 19. Bh3 {[%clk 0:00:35]} 19... b5 {[%clk
0:00:45]} 20. c5 {[%clk 0:00:17.1]} 20... dxc5 {[%clk 0:00:35.5]} 21. Qg2 {[%clk
0:00:16.9]} 21... b4 {[%clk 0:00:25.5]} 22. Ne2 {[%clk 0:00:15.7]} 22... Bd7
{[%clk 0:00:19.2]} 23. Nxd4 {[%clk 0:00:14.3]} 23... cxd4 {[%clk 0:00:20.1]} 24.
Reg1 {[%clk 0:00:13.9]} 24... a5 {[%clk 0:00:14]} 25. Kb1 {[%clk 0:00:11.7]}
25... Bxh3 {[%clk 0:00:13.6]} 26. Rxh3 {[%clk 0:00:11.6]} 26... c6 {[%clk
0:00:14]} 27. Nb6 {[%clk 0:00:06.2]} 27... Rd8 {[%clk 0:00:11.8]} 28. Nc4 {[%clk
0:00:06.9]} 28... d3 {[%clk 0:00:11.5]} 29. Rg3 {[%clk 0:00:06.8]} 29... Rfd7
{[%clk 0:00:06.1]} 30. Nd2 {[%clk 0:00:06.7]} 30... Bg7 {[%clk 0:00:06]} 31.
Bxg5 {[%clk 0:00:05.3]} 31... fxg5 {[%clk 0:00:05.8]} 32. Rxg5 {[%clk
0:00:05.8]} 32... Nxg5 {[%clk 0:00:06.1]} 33. Qxg5 {[%clk 0:00:06.6]} 33... Qf7
{[%clk 0:00:03.2]} 34. h6 {[%clk 0:00:07]} 34... Re7 {[%clk 0:00:02.1]} 35. hxg7
{[%clk 0:00:05.7]} 35... Qxg7 {[%clk 0:00:03]} 36. Qe3 {[%clk 0:00:06.1]} 36...
Rd6 {[%clk 0:00:02]} 37. Rxg7+ {[%clk 0:00:05.9]} 37... Kxg7 {[%clk 0:00:02.9]}
38. a3 {[%clk 0:00:05.4]} 38... Red7 {[%clk 0:00:02.2]} 39. axb4 {[%clk
0:00:05.6]} 39... axb4 {[%clk 0:00:03.1]} 40. Qg5+ {[%clk 0:00:05.7]} 40... Rg6
{[%clk 0:00:02.9]} 41. Qxe5+ {[%clk 0:00:05.9]} 41... Kh6 {[%clk 0:00:02]} 42.
Qf4+ {[%clk 0:00:05.9]} 42... Kg7 {[%clk 0:00:02.2]} 43. Qe5+ {[%clk 0:00:05.7]}
43... Kh7 {[%clk 0:00:02.8]} 44. Qf5 {[%clk 0:00:05.6]} 44... Rg7 {[%clk
0:00:02.9]} 45. Qh5+ {[%clk 0:00:05.5]} 45... Kg8 {[%clk 0:00:03.3]} 46. Qc5
{[%clk 0:00:05.3]} 46... Rg1+ {[%clk 0:00:02.8]} 47. Ka2 {[%clk 0:00:05.6]}
47... R1g2 {[%clk 0:00:03.3]} 48. Qc4+ {[%clk 0:00:05.3]} 48... Kh7 {[%clk
0:00:03.7]} 49. Qxd3 {[%clk 0:00:05.6]} 49... c5 {[%clk 0:00:04.2]} 50. e5+
{[%clk 0:00:05.8]} 50... Kh8 {[%clk 0:00:04.2]} 51. Kb3 {[%clk 0:00:05.5]} 51...
c4+ {[%clk 0:00:03.7]} 52. Nxc4 {[%clk 0:00:05.5]} 52... R2g3 {[%clk 0:00:04.1]}
53. Qe4 {[%clk 0:00:05.7]} 53... Rf7 {[%clk 0:00:03.8]} 54. Qh4+ {[%clk
0:00:05.2]} 54... Rh7 {[%clk 0:00:03]} 55. Qxg3 {[%clk 0:00:05.7]} 55... Rh6
{[%clk 0:00:03.9]} 56. Qg5 {[%clk 0:00:05.7]} 56... Rg6 {[%clk 0:00:03.6]} 57.
Qd8+ {[%clk 0:00:04.8]} 57... Kg7 {[%clk 0:00:04.5]} 58. Qe7+ {[%clk 0:00:04.7]}
58... Kh6 {[%clk 0:00:04.6]} 59. Qxb4 {[%clk 0:00:04.7]} 59... Kh7 {[%clk
0:00:05.5]} 60. Qc3 {[%clk 0:00:04.5]} 60... Kg7 {[%clk 0:00:06.4]} 61. Kc2
{[%clk 0:00:05]} 61... Kh7 {[%clk 0:00:07.3]} 62. Qd3 {[%clk 0:00:05.7]} 62...
Kg7 {[%clk 0:00:08.2]} 63. Qxg6+ {[%clk 0:00:05.9]} 63... Kh8 {[%clk 0:00:08.6]}
64. Kd3 {[%clk 0:00:06.7]} 1/2-1/2

[Event "Early-Titled-Tuesday-Blitz-January-30-2024"]
[Site "Chess.com"]
[Date "2024.01.30"]
[Round "1"]
[White "AlexTruskavetsky"]
[Black "Philosopherrr"]
[Result "0-1"]
[WhiteElo "2682"]
[BlackElo "2392"]
[TimeControl "180+1"]
[EndTime "8:08:24 PST"]
[Termination "Philosopherrr won by checkmate"]

1. d4 {[%clk 0:02:56.7]} 1... Nf6 {[%clk 0:02:58.9]} 2. c4 {[%clk 0:02:55.8]}
2... e6 {[%clk 0:02:56.5]} 3. Nc3 {[%clk 0:02:55.7]} 3... c5 {[%clk 0:02:54.2]}
4. d5 {[%clk 0:02:55.8]} 4... exd5 {[%clk 0:02:54.1]} 5. cxd5 {[%clk 0:02:56.7]}
5... d6 {[%clk 0:02:55]} 6. e4 {[%clk 0:02:57.1]} 6... g6 {[%clk 0:02:55.3]} 7.
f4 {[%clk 0:02:57.7]} 7... Bg7 {[%clk 0:02:55.3]} 8. Nf3 {[%clk 0:02:58.5]} 8...
O-O {[%clk 0:02:54.8]} 9. Bd3 {[%clk 0:02:59.1]} 9... Bg4 {[%clk 0:02:53.7]} 10.
O-O {[%clk 0:02:59.4]} 10... Nbd7 {[%clk 0:02:53.2]} 11. h3 {[%clk 0:02:57.8]}
11... Bxf3 {[%clk 0:02:52.9]} 12. Qxf3 {[%clk 0:02:58.7]} 12... a6 {[%clk
0:02:53.5]} 13. a4 {[%clk 0:02:59]} 13... Qc7 {[%clk 0:02:47.9]} 14. Qe2 {[%clk
0:02:50.6]} 14... Rfe8 {[%clk 0:02:44.7]} 15. a5 {[%clk 0:02:22.3]} 15... c4
{[%clk 0:02:19.3]} 16. Bc2 {[%clk 0:02:07.9]} 16... Nxe4 {[%clk 0:02:14.3]} 17.
Nxe4 {[%clk 0:01:50.7]} 17... f5 {[%clk 0:02:14.1]} 18. Qf3 {[%clk 0:01:51.5]}
18... fxe4 {[%clk 0:02:14.2]} 19. Bxe4 {[%clk 0:01:52.4]} 19... Nf6 {[%clk
0:02:09.6]} 20. Bc2 {[%clk 0:01:47.4]} 20... Qc5+ {[%clk 0:02:07.3]} 21. Kh1
{[%clk 0:01:47.9]} 21... Qxd5 {[%clk 0:02:06.6]} 22. Qxd5+ {[%clk 0:01:15.1]}
22... Nxd5 {[%clk 0:02:04.2]} 23. f5 {[%clk 0:01:15.5]} 23... Nb4 {[%clk
0:01:54.7]} 24. Bb1 {[%clk 0:00:34.4]} 24... gxf5 {[%clk 0:01:52.8]} 25. Ra4
{[%clk 0:00:30.9]} 25... Nd3 {[%clk 0:01:44.3]} 26. Rxc4 {[%clk 0:00:31]} 26...
Nxc1 {[%clk 0:01:34.2]} 27. Rcxc1 {[%clk 0:00:31.1]} 27... Bxb2 {[%clk
0:01:26.6]} 28. Rc7 {[%clk 0:00:30.1]} 28... Rac8 {[%clk 0:01:13]} 29. Rxb7
{[%clk 0:00:29.9]} 29... Rc1 {[%clk 0:01:10.1]} 30. Rxc1 {[%clk 0:00:23.4]}
30... Bxc1 {[%clk 0:01:10.4]} 31. g3 {[%clk 0:00:18.9]} 31... Re5 {[%clk
0:00:59]} 32. Bd3 {[%clk 0:00:14.3]} 32... Rxa5 {[%clk 0:00:54.6]} 33. Rd7
{[%clk 0:00:14.4]} 33... f4 {[%clk 0:00:50.2]} 34. Bxh7+ {[%clk 0:00:13.6]}
34... Kf8 {[%clk 0:00:47.5]} 35. gxf4 {[%clk 0:00:13.9]} 35... Bxf4 {[%clk
0:00:47.1]} 36. Kg2 {[%clk 0:00:14.4]} 36... Ra3 {[%clk 0:00:43.4]} 37. Bf5
{[%clk 0:00:14.3]} 37... a5 {[%clk 0:00:41.4]} 38. Be6 {[%clk 0:00:14.9]} 38...
Be5 {[%clk 0:00:41]} 39. h4 {[%clk 0:00:14.9]} 39... Rg3+ {[%clk 0:00:37.4]} 40.
Kf2 {[%clk 0:00:14.9]} 40... Rg6 {[%clk 0:00:36.2]} 41. Bd5 {[%clk 0:00:09.5]}
41... Rh6 {[%clk 0:00:34]} 42. Rf7+ {[%clk 0:00:08.2]} 42... Ke8 {[%clk
0:00:33.8]} 43. Ra7 {[%clk 0:00:08.9]} 43... Bd4+ {[%clk 0:00:32.7]} 44. Kf3
{[%clk 0:00:09.3]} 44... Bxa7 {[%clk 0:00:32.9]} 45. Kg4 {[%clk 0:00:09.6]}
45... Ke7 {[%clk 0:00:31.9]} 46. Kg5 {[%clk 0:00:09.8]} 46... Rh8 {[%clk
0:00:30.8]} 47. h5 {[%clk 0:00:10.3]} 47... a4 {[%clk 0:00:31]} 48. Kg6 {[%clk
0:00:10.6]} 48... a3 {[%clk 0:00:26.3]} 49. h6 {[%clk 0:00:11]} 49... Bd4 {[%clk
0:00:19.7]} 50. h7 {[%clk 0:00:11.4]} 50... Rb8 {[%clk 0:00:18.5]} 51. Kf5
{[%clk 0:00:10.2]} 51... Bh8 {[%clk 0:00:17.2]} 52. Kg6 {[%clk 0:00:10.5]} 52...
Rb2 {[%clk 0:00:17]} 53. Bg8 {[%clk 0:00:10.5]} 53... a2 {[%clk 0:00:16.8]} 54.
Bxa2 {[%clk 0:00:11.4]} 54... Rxa2 {[%clk 0:00:17.1]} 55. Kh5 {[%clk 0:00:12.3]}
55... Rg2 {[%clk 0:00:17.2]} 56. Kh6 {[%clk 0:00:13.2]} 56... Kf7 {[%clk
0:00:17.3]} 57. Kh5 {[%clk 0:00:13.7]} 57... d5 {[%clk 0:00:18.1]} 58. Kh4
{[%clk 0:00:14.2]} 58... Rg6 {[%clk 0:00:18.7]} 59. Kh3 {[%clk 0:00:15.1]} 59...
d4 {[%clk 0:00:19.4]} 60. Kh4 {[%clk 0:00:15.8]} 60... d3 {[%clk 0:00:20.3]} 61.
Kh5 {[%clk 0:00:16.7]} 61... d2 {[%clk 0:00:20.8]} 62. Kh4 {[%clk 0:00:17.6]}
62... d1=Q {[%clk 0:00:20.9]} 63. Kh3 {[%clk 0:00:18.5]} 63... Qh1# {[%clk
0:00:19.2]} 0-1